[Event "Fagernes Chess GM-Swiss 2024"]
[Site "Fagernes"]
[Date "2024.03.27"]
[Round "5.12"]
[White "Moksh Amit Doshi"]
[Black "Sokolovsky, Yahli"]
[Result "0-1"]
[ECO "E69"]
[WhiteElo "2353"]
[BlackElo "2475"]
[Annotator "TA"]
[PlyCount "104"]
[EventDate "2024.03.25"]
[EventType "swiss"]
[EventCountry "NOR"]
[SourceTitle "playchess.com"]
[Source "ChessBase"]
[SourceQuality "1"]
[TimeControl "40/6000+30:2400+30"]

{[%evp 25,104,32,59,12,25,11,13,-60,-51,-41,-58,-81,-82,-103,-84,-72,-54,-108,-99,-117,-85,-105,-111,-122,-119,-127,-127,-255,-135,-136,-135,-134,-118,-153,-157,-169,-92,-101,-102,-114,-116,-115,-110,-188,-187,-208,-188,-183,-180,-237,-142,-147,-147,-141,-116,-122,-126,-115,-125,-193,-157,-169,-169,-177,-153,-209,-225,-236,-150,-160,-24,-176,-190,-372,-354,-583,-583,-1098,-1273,-963,-927]} 1. d4 {[%emt 0:03:30]} Nf6 {[%emt 0:00:03]} 2. c4 {[%emt 0:00:11]} g6 {[%emt 0:00:03]} 3. g3 {[%emt 0:00:16]} Bg7 {[%emt 0:00:04]} 4. Bg2 {[%emt 0:00:08]} d6 {[%emt 0:00:05]} 5. Nc3 {[%emt 0:00:09]} O-O {[%emt 0:00:06]} 6. Nf3 {[%emt 0:00:07]} Nbd7 {[%emt 0:00:09]} 7. O-O {[%emt 0:00:13]} e5 {[%emt 0:00:02]} 8. e4 {[%emt 0:00:11]} exd4 {[%emt 0:00:04]} 9. Nxd4 {[%emt 0:00:09]} Nc5 {[%emt 0:00:04]} 10. h3 {[%emt 0:00:41]} Re8 {[%emt 0:00:04]} 11. Re1 {[%emt 0:00:10]} h6 {[%emt 0:00:25]} 12. Rb1 {[%emt 0:00:22]} a5 {[%emt 0:00:15][%cal Ba7a5,Ba5a4][%mdl 32]} 13. b3 {[%emt 0:11:02]} c6 {[%emt 0:00:04][%cal Oa5a4]} 14. Bb2 {[%emt 0:03:49]} (14. Bf4 $14 {sieht stärker aus.}) 14... Nfd7 {[%emt 0:00:18]} 15. Qd2 {[%emt 0:08:42]} a4 {[%emt 0:00:06]} 16. Kh2 {[%emt 0:22:00]} (16. Red1 $11) 16... Ne5 $15 {[%emt 0:17:46]} 17. Re3 {[%emt 0:05:09] Gegen Ned3 gerichtet.} Qb6 {[%emt 0:02:50][%cal Ra4b3]} (17... axb3 {hält die Spannung aufrecht.} 18. axb3 Nxb3 19. Nxb3 Nxc4 20. Qc1 Nxe3 21. Qxe3 b5) 18. Ba1 {[%emt 0:14:18]} axb3 {[%emt 0:01:53]} 19. axb3 {[%emt 0:00:08] [#]} Rxa1 $1 {[%emt 0:15:43][%mdl 512]} 20. Rxa1 {[%emt 0:01:56]} Nxb3 {[%emt 0:00:06]} 21. Nxb3 {[%emt 0:01:06]} Nxc4 {[%emt 0:00:55]} 22. Qc2 {[%emt 0:02:10]} Nxe3 {[%emt 0:00:27]} 23. fxe3 {[%emt 0:00:21]} Qxe3 {[%emt 0:00:39][%cal Oc8e6]} 24. Rc1 {[%emt 0:05:00] Weiss hat schwache schwarze Felder} Be5 {[%emt 0:02:19]} 25. Ne2 {[%emt 0:00:11]} h5 {[%emt 0:04:43] Schwarz hat aktiveres Spiel.} 26. Na5 {[%emt 0:03:04]} (26. Rb1 $17) 26... h4 {[%emt 0:16:35]} (26... d5 $1 $19 27. Rb1 (27. exd5 $2 cxd5 28. Qa4 Kg7 $19) 27... h4) 27. Nc4 $17 {[%emt 0:00:25]} hxg3+ {[%emt 0:00:06]} (27... Bxg3+ $6 28. Kh1 Qg5 29. Nxg3 Qxg3 30. Qc3 $11) 28. Kh1 {[%emt 0:00:07]} Qh6 {[%emt 0:00:05] Das Brett brennt.} 29. Qd2 {[%emt 0:05:31]} Qxd2 {[%emt 0:14:27]} 30. Nxd2 {[%emt 0:00:22]} Be6 {[%emt 0:03:03]} (30... f5 $1 $19 31. exf5 Bb2 (31... Bxf5 32. Nf3 $17) (31... gxf5 32. Nf3 $17)) 31. Nf3 {[%emt 0:01:23]} Bg7 {[%emt 0:01:22]} (31... Bb2 $6 32. Rb1 Bf6 33. Rxb7 $11) 32. Nxg3 {[%emt 0:01:14]} Ra8 {[%emt 0:02:14]} 33. Ne2 {[%emt 0:04:45]} Ra4 {[%emt 0:00:46][%mdl 1024] Schwarz hat starke Kompensation.} 34. Rb1 {[%emt 0:06:23]} (34. Rd1 $17) 34... b5 $19 {[%emt 0:04:38][%cal Ob5b4]} (34... Rxe4 35. Nfg1 Re3 36. Rxb7 $11) 35. Nf4 {[%emt 0:02:53]} Ba2 {[%emt 0:06:19] Ein starkes Läuferpaar.} (35... Rxe4 36. Nxe6 Rxe6 37. Ng5 $15) 36. Re1 {[%emt 0:00:18]} c5 {[%emt 0:07:46]} 37. Bf1 {[%emt 0:03:21]} (37. Kg1 $142) 37... Ra3 {[%emt 0:04:46]} ({Besser ist} 37... b4 $19 {...b3 ist eine echte Drohung.} 38. Nd5 b3) 38. Kg2 $17 {[%emt 0:01:18]} Bh6 {[%emt 0:05:45]} 39. Nd5 {[%emt 0:02:37]} Bxd5 {[%emt 0:01:23]} 40. exd5 {[%emt 0:00:06]} b4 {[%emt 0:01:14]} 41. Re8+ {[%emt 0:12:40]} Kg7 {[%emt 0:00:02]} 42. Kg3 {[%emt 0:00:21]} (42. Rb8 $17) 42... Kf6 {[%emt 0:13:54]} 43. h4 {[%emt 0:03:13]} Rc3 {[%emt 0:01:32]} 44. Rd8 {[%emt 0:04:51]} Kf5 {[%emt 0:01:31]} 45. Rd7 {[%emt 0:03:14]} (45. Kf2 $17 {ist eine bessere Verteidigung.}) 45... Bf4+ $19 {[%emt 0:09:57]} 46. Kf2 {[%emt 0:00:28]} f6 {[%emt 0:01:21]} 47. Re7 {[%emt 0:05:57][%cal Rf1h3] [#]} Rc2+ {[%emt 0:03:36]} (47... g5 $1 $17 {[%cal Rg5g4] ...g4 wäre nun fies.} 48. Ba6 b3 (48... Kg4 49. Ne1 $17)) 48. Be2 $2 {[%emt 0:00:21]} (48. Ke1 $1 $11 {und Weiss ist OK.} Rc1+ 49. Kf2 Rc2+ 50. Ke1 (50. Re2 Rxe2+ 51. Bxe2 b3 $17) 50... Bg3+ 51. Kd1) 48... b3 {[%emt 0:00:50] Droht stark ...b2.} 49. Ne1 $2 {[%emt 0:08:28] [#]} (49. Ke1) 49... c4 $1 {[%emt 0:01:43][%cal Of4e5]} 50. Rb7 $2 {[%emt 0:03:59] [#]} ({Nicht} 50. Nxc2 $2 bxc2 51. h5 gxh5 (51... c1=B 52. hxg6 Kxg6 53. Bxc4 $16) (51... c1=Q $2 52. Kg2 $19) (51... c1=R 52. hxg6 Kxg6 53. Re4 $17) 52. Bxc4 c1=Q $19 (52... c1=B 53. Bd3+ Kg4 54. Rg7+ Bg5 55. Be2+ Kf4 56. Bxh5 $16)) (50. Rc7 {war einen Versuch wert.} b2 (50... Bg3+ 51. Kxg3 Rxe2 52. Nf3 $19) 51. Nxc2) (50. Kf3 Rc3+) 50... Bg3+ $1 {[%emt 0:02:06][%mdl 512] Schwarz steht klar auf Gewinn.} 51. Kxg3 {[%emt 0:00:31]} (51. Kf1 Bxe1) 51... Rxe2 {[%emt 0:00:07]} 52. Nf3 {[%emt 0:00:05]} Ke4 {[%emt 0:00:31] Gewichteter Fehlerwert: Weiß=0.55/Schwarz=0.19 (sehr präzise) .  Fehler:       	Weiß=9     	Schwarz=4     Ungenau:       	Weiß=2     	Schwarz=1     OK:         	Weiß=11    	Schwarz=14    Bester:       	Weiß=3     	Schwarz=7     Stark:        	---       	Schwarz=1     Brilliant:      	---       	Schwarz=1} 0-1

[Event "Fagernes Chess GM-Swiss 2024"]
[Site "Fagernes"]
[Date "2024.03.27"]
[Round "5.13"]
[White "Hillarp Persson, Tiger"]
[Black "Krishnan, Ritvik"]
[Result "1/2-1/2"]
[ECO "A05"]
[WhiteElo "2473"]
[BlackElo "2277"]
[Annotator "TA"]
[PlyCount "80"]
[EventDate "2024.03.25"]
[EventType "swiss"]
[EventCountry "NOR"]
[SourceTitle "playchess.com"]
[Source "ChessBase"]
[SourceQuality "1"]
[TimeControl "40/6000+30:2400+30"]

{[%evp 14,80,-2,-14,1,-8,-2,-6,-10,0,0,-8,0,-1,37,0,10,5,9,9,2,0,1,12,0,0,0,0,0,0,0,7,0,0,25,-18,0,-28,7,0,0,0,0,0,0,-20,0,0,0,0,0,0,0,0,0,0,0,0,0,0,0,0,0,0,0,0,0,0,0]} 1. Nf3 {[%emt 0:05:51]} d5 {[%emt 0:00:04]} 2. g3 {[%emt 0:00:22]} c5 {[%emt 0:00:05]} 3. Bg2 {[%emt 0:00:35]} Nc6 {[%emt 0:00:05]} 4. O-O {[%emt 0:04:11]} Nf6 {[%emt 0:00:04]} 5. d3 {[%emt 0:00:23]} g6 {[%emt 0:00:05]} 6. Nc3 {[%emt 0:04:46]} Bg7 {[%emt 0:02:26]} 7. a3 {[%emt 0:00:11]} O-O {[%emt 0:01:29]} 8. Rb1 {[%emt 0:00:05]} b6 {[%emt 0:09:30]} 9. b4 {[%emt 0:02:36]} cxb4 {[%emt 0:02:58]} 10. axb4 {[%emt 0:01:06]} Bb7 {[%emt 0:00:51]} 11. b5 {[%emt 0:01:44]} Na5 {[%emt 0:03:01]} 12. Bd2 {[%emt 0:18:44]} Rc8 {[%emt 0:02:03]} 13. Na4 {[%emt 0:04:13]} Ne8 {[%emt 0:05:33]} 14. Bxa5 {[%emt 0:02:02]} bxa5 {[%emt 0:03:02]} 15. Nd2 {[%emt 0:00:44]} Nd6 {[%emt 0:10:42] [#] Against c4} 16. c4 $1 {[%emt 0:00:59]} dxc4 {[%emt 0:01:24]} 17. Bxb7 {[%emt 0:00:11]} Nxb7 {[%emt 0:00:03]} 18. Nxc4 {[%emt 0:00:12]} Nd6 {[%emt 0:01:13]} 19. Qb3 {[%emt 0:05:00]} Rb8 {[%emt 0:03:28]} 20. Nxd6 {[%emt 0:00:30]} Qxd6 {[%emt 0:00:24]} 21. Rfc1 {[%emt 0:00:32]} Rfc8 {[%emt 0:01:48] Wards off Rc6} 22. Rc4 {[%emt 0:02:48]} h5 {[%emt 0:03:30]} 23. e3 {[%emt 0:07:23]} e6 {[%emt 0:04:42]} 24. d4 {[%emt 0:06:20]} Kh7 {[%emt 0:06:29]} 25. h4 {[%emt 0:02:43]} Qd5 {[%emt 0:06:11]} (25... e5 {keeps more tension.} 26. dxe5 Qxe5 27. Rxc8 Rxc8 28. Qxf7 Qe4) 26. Rxc8 {[%emt 0:00:25] The position is equal.} Qxb3 {[%emt 0:00:11]} 27. Rxb3 {[%emt 0:00:08]} Rxc8 $11 {[%emt 0:00:02][%mdl 4096] Endgame. KRB-KRN} 28. Kg2 {[%emt 0:25:57]} Rc4 {[%emt 0:02:17]} 29. Nb2 {[%emt 0:06:08]} Rc2 {[%emt 0:00:30]} 30. Nd3 {[%emt 0:00:13]} Bf8 $1 {[%emt 0:01:13] Wards off Ra3} 31. b6 {[%emt 0:00:05]} axb6 {[%emt 0:00:19]} 32. Rxb6 {[%emt 0:00:04]} a4 {[%emt 0:02:31]} 33. Ne5 {[%emt 0:02:47]} Rc7 {[%emt 0:05:40]} 34. Ra6 {[%emt 0:00:07] Inhibits Ra7.} a3 {[%emt 0:00:13]} 35. Nd3 {[%emt 0:01:58]} Rc2 {[%emt 0:02:32]} (35... Kg7 $5) 36. Ne5 {[%emt 0:00:18]} Rc7 {[%emt 0:10:27]} 37. Nd3 {[%emt 0:00:11]} Kg7 {[%emt 0:00:39]} 38. Nc5 {[%emt 0:00:08]} Bxc5 {[%emt 0:00:08]} 39. dxc5 {[%emt 0:00:06]} Rxc5 {[%emt 0:00:02]} 40. Rxa3 {[%emt 0:00:08]} Rc2 {[%emt 0:00:07] An even fight not without its subleties.   Weighted Error Value: White=0.04 (flawless) /Black=0.06 (flawless) .  Inaccurate:     	White=2     	Black=2      OK:         	White=17    	Black=14     Best:        	White=1     	---        Strong:       	---       	Black=1} 1/2-1/2

[Event "Fagernes Chess GM-Swiss 2024"]
[Site "Fagernes"]
[Date "2024.03.27"]
[Round "5.14"]
[White "Lund, Gunnar"]
[Black "Koelle, Tobias"]
[Result "1/2-1/2"]
[ECO "E11"]
[WhiteElo "2335"]
[BlackElo "2460"]
[Annotator "TA"]
[PlyCount "65"]
[EventDate "2024.03.25"]
[EventType "swiss"]
[EventCountry "NOR"]
[SourceTitle "playchess.com"]
[Source "ChessBase"]
[SourceQuality "1"]
[TimeControl "40/6000+30:2400+30"]

{[%evp 12,65,16,12,14,0,18,15,14,0,0,9,35,37,41,41,30,38,40,32,39,40,42,40,62,59,60,60,60,60,76,77,72,52,54,56,54,42,49,46,45,42,42,42,47,45,44,44,49,50,52,0,0,4,7,0]} 1. d4 {[%emt 0:03:21]} Nf6 {[%emt 0:00:09]} 2. Nf3 {[%emt 0:01:40]} d5 {[%emt 0:00:16]} 3. c4 {[%emt 0:00:20]} e6 {[%emt 0:00:06]} 4. g3 {[%emt 0:00:09]} Bb4+ {[%emt 0:00:06]} 5. Bd2 {[%emt 0:00:16]} a5 {[%emt 0:00:08]} 6. Qc2 {[%emt 0:04:29]} O-O {[%emt 0:01:27]} 7. Bg2 {[%emt 0:01:24]} Be7 {[%emt 0:00:19]} 8. O-O {[%emt 0:01:03]} c6 {[%emt 0:00:06]} 9. Bg5 {[%emt 0:07:16]} Nbd7 {[%emt 0:01:19]} 10. Nbd2 {[%emt 0:00:46]} b6 {[%emt 0:21:28]} 11. e4 {[%emt 0:04:08]} dxe4 {[%emt 0:05:03]} 12. Nxe4 {[%emt 0:00:51]} Nxe4 {[%emt 0:07:36]} 13. Bxe7 {[%emt 0:00:59]} Qxe7 {[%emt 0:01:09]} 14. Qxe4 {[%emt 0:00:11]} Bb7 {[%emt 0:01:00]} 15. Rfe1 {[%emt 0:06:10]} Rfd8 {[%emt 0:04:50]} 16. Rac1 {[%emt 0:04:12]} Nf6 {[%emt 0:12:45]} 17. Qc2 {[%emt 0:13:38]} c5 {[%emt 0:01:48] [#]} 18. d5 {[%emt 0:00:17]} Rd6 {[%emt 0:03:04]} 19. Nh4 {[%emt 0:00:34] Strongly threatening Nf5.} Qc7 {[%emt 0:03:03]} 20. dxe6 {[%emt 0:00:56]} fxe6 {[%emt 0:00:35]} 21. Bxb7 {[%emt 0:02:54]} Qxb7 {[%emt 0:00:07]} 22. Rcd1 {[%emt 0:00:29]} Rad8 {[%emt 0:00:13]} 23. Rxd6 {[%emt 0:00:08]} Rxd6 {[%emt 0:00:02]} 24. Qe2 {[%emt 0:00:20]} Qf7 {[%emt 0:07:14]} 25. Nf3 {[%emt 0:05:35]} h6 {[%emt 0:01:50] Dodges Ng5} 26. Kg2 {[%emt 0:01:02]} Qb7 {[%emt 0:03:48]} 27. h3 {[%emt 0:01:24]} Qc6 {[%emt 0:00:32]} 28. Kh2 {[%emt 0:00:41]} Qa4 {[%emt 0:01:48]} 29. b3 {[%emt 0:02:48]} Qd7 {[%emt 0:00:35]} 30. Ne5 {[%emt 0:00:40]} Qb7 {[%emt 0:02:37]} 31. Ng4 {[%emt 0:03:04]} (31. Qc2 $14) 31... Nxg4+ $11 {[%emt 0:00:26]} 32. Qxg4 {[%emt 0:00:10]} Qf7 {[%emt 0:00:41]} 33. Re2 {[%emt 0:00:57] Weighted Error Value: White=0.06 (flawless) /Black=0.03 (flawless) .  Mistake:       	White=1     	---        Inaccurate:     	---       	Black=1      OK:         	White=9     	Black=11     Best:        	White=3     	---        Brilliant:      	White=1     	---} 1/2-1/2

[Event "Fagernes Chess GM-Swiss 2024"]
[Site "Fagernes"]
[Date "2024.03.27"]
[Round "5.15"]
[White "Hedman, Erik"]
[Black "Kvaloy, Aksel Bu"]
[Result "0-1"]
[ECO "B51"]
[WhiteElo "2311"]
[BlackElo "2454"]
[Annotator "TA"]
[PlyCount "66"]
[EventDate "2024.03.25"]
[EventType "swiss"]
[EventCountry "NOR"]
[SourceTitle "playchess.com"]
[Source "ChessBase"]
[SourceQuality "1"]
[TimeControl "40/6000+30:2400+30"]

{[%evp 9,66,12,13,14,16,1,0,0,0,0,27,0,14,0,7,-19,-6,-35,-31,-57,-32,-30,-29,-33,-31,-107,-120,-121,-129,-131,-99,-136,-130,-131,-139,-133,-124,-152,-150,-148,-141,-154,-148,-157,-85,-146,-113,-178,-175,-238,-237,-240,-243,-275,-292,-392,-386,-360,-350]} 1. e4 {[%emt 0:00:04]} c5 {[%emt 0:00:33]} 2. Nf3 {[%emt 0:00:16]} d6 {[%emt 0:00:09]} 3. Bb5+ {[%emt 0:00:11]} Nd7 {[%emt 0:00:08]} 4. c4 {[%emt 0:00:11]} Ngf6 {[%emt 0:00:15]} 5. Nc3 {[%emt 0:00:08]} g6 {[%emt 0:00:23]} 6. d3 {[%emt 0:00:34]} Bg7 {[%emt 0:00:14]} 7. h3 {[%emt 0:00:08]} O-O {[%emt 0:00:13]} 8. Ba4 {[%emt 0:00:06] The position is equal.} Nb8 {[%emt 0:00:30]} 9. Be3 Nc6 {[%emt 0:00:30]} 10. Qd2 {[%emt 0:01:00]} Bd7 {[%emt 0:00:30]} 11. Bxc6 {[%emt 0:00:30]} Bxc6 {[%emt 0:00:30]} 12. Bh6 {[%emt 0:00:30]} a6 {[%emt 0:00:30]} 13. O-O-O {[%emt 0:00:30]} b5 {[%emt 0:00:30][%cal Bb7b5,Bb5c4][%mdl 32]} 14. Rde1 {[%emt 0:00:30]} Qa5 {[%emt 0:30:36]} 15. Kb1 {[%emt 0:42:08]} Bxh6 {[%emt 0:00:30]} 16. Qxh6 {[%emt 0:00:30]} bxc4 {[%emt 0:00:30]} 17. e5 {[%emt 0:00:30] [#]} (17. dxc4 $15 Qb4 18. Ka1) 17... dxe5 $1 $17 {[%emt 0:08:58]} (17... Nd5 $2 18. Nxd5 Rab8 19. Ng5 $18 (19. Nxe7+ Kh8 $18) (19. dxc4 $2 Bxd5 20. Qc1 Bxf3 $17) (19. Nxe7+ Kh8 $18) (19. dxc4 Bxd5 20. Qc1 Bxf3 $17)) 18. Nxe5 {[%emt 0:00:20]} Bxg2 {[%emt 0:02:50][%cal Bc6g2,Bg2d5,Bd5e6][%mdl 32]} 19. Rhg1 {[%emt 0:09:41]} Rab8 $1 {[%emt 0:03:44][%cal Ob8b2]} 20. Ka1 {[%emt 0:02:33][%cal Oe5c4] [#] Nxc4! is the strong threat.} Rxb2 $3 {[%emt 0:21:24][%mdl 512]} 21. Nxc4 {[%emt 0:14:10]} (21. Kxb2 Rb8+ 22. Kc2 Nd5 23. Rc1 Qxc3+ 24. Kd1 Qxe5 25. Rxg2 cxd3 26. f3 Ne3+ 27. Ke1 Nxg2+ 28. Kf1 Rb2 (28... Ne3+ 29. Qxe3 Qxe3 30. Re1 Qxf3+ 31. Kg1 Rb2 32. Re2 dxe2 33. h4 e1=Q#) 29. Kg1 Nh4 (29... Rxa2 30. Rd1) (29... Qd4+ 30. Kh1) (29... Rxa2 30. Rd1 Nf4 31. Rf1 Qe2 32. Qxg6+ hxg6 33. Rf2 Qxf2+ 34. Kh1 Qh2#) (29... Qd4+ 30. Kh1)) 21... Qxc3 {[%emt 0:00:30]} 22. Nxb2 {[%emt 0:00:00][%cal Oe1c1] Threatens to win with Rc1! White is weak on the light squares} Bd5 {Really sharp!} 23. Qf4 {[%emt 0:06:07][%cal Oe1c1] [#]} Be6 $1 $40 {[%emt 0:03:08][%cal Of6d5][%mdl 128] Black is out for blood.} 24. Rc1 {[%emt 0:00:00]} Qa5 {Black is more active.} 25. Qa4 {[%emt 0:03:42]} Qb6 {[%emt 0:06:13][%cal Of8b8]} 26. Qa3 {[%emt 0:00:00]} Nd7 {[%emt 0:04:20]} (26... Bxh3 27. d4 Be6 28. dxc5 $17) (26... Rc8 $142 {[%cal Ob6d6]} 27. Rge1 Qd6 (27... Bxh3 28. d4 $17)) 27. Qc3 {[%emt 0:03:36]} (27. Rgd1 $142) 27... Qd6 {[%emt 0:01:04][%cal Od6d5]} ({Don't play} 27... Bxh3 28. d4 Bf5 (28... cxd4 $2 {loses.} 29. Qxh3 Rd8 30. f4 $18) 29. dxc5 $15) 28. h4 {[%emt 0:00:00]} (28. Rgd1 $17) 28... h5 {[%emt 0:02:16]} 29. Qd2 {[%emt 0:08:12]} (29. Rgd1 {was worth a try.}) 29... Rb8 {[%emt 0:03:21]} 30. Qe3 {[%emt 0:00:22]} Qd5 {[%emt 0:06:08][%csl Ge6][%cal Rd5a2]} 31. Nc4 {[%emt 0:01:07]} Qf5 {[%emt 0:00:34]} 32. Rg5 {[%emt 0:02:12]} Qf6+ {[%emt 0:00:20]} 33. Ne5 {[%emt 0:00:03]} Rb4 {[%emt 0:02:35] Weighted Error Value: White=0.24 (precise) /Black=0.08 (flawless) .  Mistake:       	White=4     	Black=1      Inaccurate:     	White=6     	Black=1      OK:         	White=8     	Black=13     Best:        	White=2     	---        Strong:       	---       	Black=3} 0-1

[Event "Fagernes Chess GM-Swiss 2024"]
[Site "Fagernes"]
[Date "2024.03.27"]
[Round "5.16"]
[White "Chasin, Nico"]
[Black "Kistrup, Nicolai"]
[Result "0-1"]
[ECO "A29"]
[WhiteElo "2447"]
[BlackElo "2324"]
[Annotator "TA"]
[PlyCount "62"]
[EventDate "2024.03.25"]
[EventType "swiss"]
[EventCountry "NOR"]
[SourceTitle "playchess.com"]
[Source "ChessBase"]
[SourceQuality "1"]
[TimeControl "40/6000+30:2400+30"]

{[%evp 9,62,2,0,6,16,16,14,12,9,0,9,-5,0,0,5,-13,-20,-6,0,0,0,-10,-17,-65,-60,-79,-62,-69,-63,-66,-61,-67,0,0,0,0,0,0,0,0,0,-26,-17,-18,-15,-28,-17,-412,-390,-395,-343,-474,-479,-1493,-1487]} 1. c4 {[%emt 0:15:48]} e5 {[%emt 0:00:48]} 2. Nc3 {[%emt 0:00:15]} Nf6 {[%emt 0:00:05]} 3. Nf3 {[%emt 0:00:05]} Nc6 {[%emt 0:01:23]} 4. g3 {[%emt 0:00:25]} Bb4 {[%emt 0:00:50]} 5. Nd5 {[%emt 0:01:00]} e4 {[%emt 0:00:23]} 6. Nh4 {[%emt 0:01:10]} O-O {[%emt 0:00:21]} 7. Bg2 {[%emt 0:00:35]} d6 {[%emt 0:00:10]} 8. a3 {[%emt 0:00:55] The position is equal.} Bc5 {[%emt 0:02:26]} 9. O-O {[%emt 0:01:01]} Bg4 {[%emt 0:04:41]} 10. h3 {[%emt 0:05:52]} Be6 {[%emt 0:06:58]} 11. d3 {[%emt 0:00:07]} exd3 {[%emt 0:03:44]} 12. Qxd3 {[%emt 0:00:08]} Ne5 {[%emt 0:01:50]} 13. Qc3 {[%emt 0:03:51]} c6 {[%emt 0:04:26]} 14. Nxf6+ {[%emt 0:02:55]} Qxf6 {[%emt 0:00:08]} 15. b4 $1 {[%emt 0:00:22]} Bb6 {[%emt 0:01:35][%cal Oe5f3]} 16. c5 {[%emt 0:00:11]} (16. Bb2 $1 $11) 16... dxc5 $15 {[%emt 0:04:19]} 17. Bb2 {[%emt 0:06:59]} Nd7 {[%emt 0:03:46]} 18. Qc2 {[%emt 0:00:15]} Qe7 {[%emt 0:05:07]} 19. Nf5 {[%emt 0:00:13]} Bxf5 {[%emt 0:00:14]} 20. Qxf5 {[%emt 0:00:03]} Rfe8 {[%emt 0:12:35]} ({But not} 20... Qxe2 21. Bxg7 Kxg7 22. Be4 cxb4 23. Qxh7+ Kf6 24. Qf5+ (24. Rae1 Qd2 $11) 24... Ke7 25. Rae1 Bxf2+ 26. Qxf2 Qxf2+ 27. Rxf2 $11) ({Better is} 20... cxb4 $15 21. axb4 Qxe2 (21... Qxb4 22. Ba3 $16) 22. Bxg7 Kxg7 23. Qxd7 Qe5) 21. b5 $1 $11 {[%emt 0:02:36]} Ne5 {[%emt 0:07:18]} 22. Bxe5 {[%emt 0:01:05]} Qxe5 {[%emt 0:02:32]} 23. Qxe5 {[%emt 0:00:06]} Rxe5 {[%emt 0:00:05]} 24. bxc6 {[%emt 0:00:04]} bxc6 {[%emt 0:00:35]} 25. Bxc6 {[%emt 0:00:10]} Rc8 {[%emt 0:01:20]} 26. Bf3 {[%emt 0:00:50]} c4 $36 {[%emt 0:01:21][%mdl 2048] White is under pressure.} 27. Rfd1 {[%emt 0:01:38]} c3 {[%emt 0:01:32] And now ...c2 would win.} 28. Rd7 $2 {[%emt 0:00:06][%mdl 8192] This move loses the game for White.} (28. Rd5 $11 Rxd5 29. Bxd5) 28... c2 $19 {[%emt 0:05:18]} 29. Rc1 {[%emt 0:00:02] [#]} Rb5 $1 {[%emt 0:02:34] White must now prevent ...Rb1.} 30. Kg2 {[%emt 0:05:01]} Rb1 {[%emt 0:00:27]} 31. Rdd1 {[%emt 0:00:04]} (31. Rxc2 $142 Rxc2 32. h4) 31... cxd1=Q {[%emt 0:00:20] Weighted Error Value: White=0.49/Black=0.06 (flawless) .  Loses game:     	White=1     	---        Mistake:       	White=2     	Black=1      Inaccurate:     	White=2     	---        OK:         	White=9     	Black=9      Best:        	White=1     	Black=3      Strong:       	White=2     	Black=1} 0-1